Cogmind - Beta 13 @@@ ROGUE MODE // 2024.07.04 @ 14:02:28 Player: Jazzer Result: Destroyed by as-73298 with Assembled Blade Performance ------------- Evolutions (0) 0 Regions Visited (2) 400 Robots Destroyed (25) 125 Value Destroyed (497) 497 Prototype IDs (2) 40 Alien Tech Used (0) 0 Bonus (0) 0 TOTAL SCORE: 1062 Bonus ------- None Cogmind --------- Core Integrity 0/250 Matter 220/300 Energy 95/100 System Corruption 0% Temperature Cool (9) Movement Walking (120) Location -10/Mines Parts ------- > --- POWER (1) -------- (None) > --- PROPULSION (2) --- Aluminum Leg Aluminum Leg > --- UTILITY (2) ------ Improved Heat Sink Medium Storage Unit > --- WEAPON (2) ------- Beam Cannon Light Assault Rifle > --- INVENTORY (10) --- Ion Engine Light Treads Structural Scanner Seismic Detector Small Laser Beam Cannon Light Assault Rifle Light Assault Rifle Mini Grenade Launcher Mini Grenade Launcher Peak State ------------ > --- POWER ------------ Ion Engine > --- PROPULSION ------- Aluminum Leg Aluminum Leg > --- UTILITY ---------- Improved Heat Sink Medium Storage Unit > --- WEAPON ----------- Beam Cannon Mini Grenade Launcher > --- INVENTORY -------- Ion Engine Light Treads Structural Scanner Seismic Detector Small Laser Beam Cannon Light Assault Rifle Light Assault Rifle Light Assault Rifle Mini Grenade Launcher [Rating: 11] Favorites ----------- Power Ion Engine Engine Ion Engine Propulsion Aluminum Leg Leg Aluminum Leg Utility Seismic Detector Device Seismic Detector Storage Medium Storage Unit Weapon Assault Rifle Energy Gun Small Laser Energy Cannon Beam Cannon Ballistic Gun Assault Rifle Launcher Mini Grenade Launcher Build | -11 -10 -10 ------- Run | Yrd Mat Min Slots Evolved . | . . . Power . | . . . Propulsion . | . . . Utility . | . . . Weapon . | . . . Parts Attached 21 | 8 5 8 Power 2 | 1 1 . Engine 2 | 1 1 . Core . | . . . Reactor . | . . . Propulsion 4 | 2 1 1 Treads . | . . . Leg 4 | 2 1 1 Wheel . | . . . Hover . | . . . Flight . | . . . Utility 5 | 2 1 2 Device 3 | 1 . 2 Storage 2 | 1 1 . Processor . | . . . Hackware . | . . . Protection . | . . . Artifact . | . . . Weapon 10 | 3 2 5 Energy Gun 1 | . 1 . Energy Cannon 1 | . . 1 Ballistic Gun 6 | 3 1 2 Ballistic Cannon . | . . . Launcher 2 | . . 2 Special Weapon . | . . . Impact Weapon . | . . . Slashing Weapon . | . . . Piercing Weapon . | . . . Special Melee Weapon . | . . . Unidentified Prototypes . | . . . Parts Lost 3 | . 2 1 Power 1 | . . 1 Propulsion . | . . . Utility . | . . . Weapon 2 | . 2 . Highest Loss Streak 2 | . 2 1 To Critical Strikes . | . . . Average Slot Usage (%) 99 | . 99 100 Engine 14 | . 14 14 Leg 28 | . 28 28 Device 14 | . 14 14 Storage 14 | . 14 14 Energy Gun 6 | . 7 . Energy Cannon 1 | . . 13 Ballistic Gun 18 | . 19 11 Naked Turns . | . . . Heaviest Build 20 | 15 18 20 Greatest Support 20 | 20 20 20 Greatest Overweight (x) 2 | 2 . . Average Overweight (x) . | . . . Largest Inventory Capacity 10 | 8 10 10 Average Capacity 8 | 7 8 10 Most Carried 10 | 4 10 10 Average Carried 7 | 3 8 10 Final Capacity 10 | 8 10 10 Final Carried 10 | 4 10 10 Class Distribution -------------------- 57% | Scavenger-Mutant 42% | Mutant Dominant Class ---------------- Scavenger-Mutant | -10/Materials Scavenger-Mutant | -10/Mines Resources | -11 -10 -10 ----------- Run | Yrd Mat Min Matter Collected 624 | 271 272 81 Remotely . | . . . Salvage Created 754 | 24 471 259 Parts 50 | 5 36 9 Haulers Intercepted 2 | . 2 . Recyclers Shooed 1 | . 1 . Parts Field Recycled . | . . . Retrieved Matter . | . . . Parts Self-Destructed . | . . . Prevented . | . . . Kills | -11 -10 -10 ------- Run | Yrd Mat Min Combat Hostiles Destroyed 20 | . 9 11 Guns 10 | . 9 1 Cannons 3 | . . 3 AOE 7 | . . 7 Classes Destroyed 9 | 1 6 2 Worker 1 | . 1 . Tunneler 2 | 2 . . Hauler 2 | . 2 . Recycler 2 | . . 2 Operator 1 | . 1 . Watcher 2 | . 2 . Swarmer 6 | . 3 3 Grunt 9 | . 6 3 Assembled 5 | . . 5 Best Kill Streak 7 | 1 5 7 Combat Bots Only 5 | . 4 5 Max Kills in Single Turn 3 | 1 1 3 Gunslinging . | . . . Exploded 3 | . . 3 Melee . | . . . Uniques/NPCs Destroyed . | . . . Combat | -11 -10 -10 -------- Run | Yrd Mat Min Hostile Shots Fired 97 | . 70 27 Missed 27 | . 20 7 Damage Taken 969 | . 553 416 Core 282 | . 94 188 Absorbed by Shields . | . . . Core Remaining (%) 100 | 100 . . Volleys Fired 77 | 4 50 23 Largest 2 | 2 2 2 Hottest 80 | 40 60 80 Shots Fired 146 | 7 100 39 Gun 123 | 7 100 16 Cannon 16 | . . 16 Launcher 7 | . . 7 Special . | . . . Kinetic 109 | 7 86 16 Thermal 30 | . 14 16 Explosive 7 | . . 7 Electromagnetic . | . . . Robot Hit Streak 12 | 4 12 11 Robot Miss Streak 3 | 1 3 1 Penetration Max . | . . . Secondary Targets . | . . . Shots Hit Robots 92 | 5 62 25 Core Hits 49 | 3 27 19 Critical Kills . | . . . Critical Parts Destroyed . | . . . Critical Strikes . | . . . Melee Attacks . | . . . Impact . | . . . Slashing . | . . . Piercing . | . . . Sneak Attacks . | . . . Combat Hostiles . | . . . Follow-up Attacks . | . . . Damage Inflicted 1676 | 64 789 823 Guns 933 | 60 779 94 Cannons 250 | . . 250 Explosions 466 | . . 466 Melee . | . . . Ramming 27 | 4 10 13 Kinetic 802 | 60 648 94 Thermal 381 | . 131 250 Explosive 466 | . . 466 Electromagnetic . | . . . Impact . | . . . Slashing . | . . . Piercing . | . . . Highest Corruption . | . . . Average Corruption . | . . . Corruption Purged . | . . . Corruption Blocked . | . . . Overload Shots . | . . . Overflow Damage 30 | . . 30 Projectiles 1 | . . 1 Explosions 29 | . . 29 Melee . | . . . Knockbacks . | . . . Impact . | . . . Kinetic . | . . . Secondary . | . . . Self-Inflicted Damage 58 | . . 58 Shots 3 | . . 3 Rammed . | . . . Targets Rammed 8 | 2 5 1 Kicked 8 | 2 5 1 Crushed . | . . . Highest Temperature 100 | . 40 100 Average Temperature 28 | . 13 45 Received Heat Transfer 342 | . 264 78 Siege Activations . | . . . Robots Corrupted . | . . . Combat Hostiles . | . . . Parts Fried . | . . . Impact Corruptions . | . . . Robots Melted . | . . . Combat Hostiles . | . . . Parts Melted 1 | . . 1 Heat Transferred 793 | . 275 518 Parts Sabotaged . | . . . Parts Stolen . | . . . Parts Stripped . | . . . Power Chain Reactions . | . . . Alert | -11 -10 -10 ------- Run | Yrd Mat Min Peak Influence 269 | 10 164 269 Initial 40 | . 6 40 Average 85 | 4 76 192 Maximum Alert Level 1 | . . 1 Low Security (%) 95 | 100 100 62 Level 1 4 | . . 37 Level 2 . | . . . Level 3 . | . . . Level 4 . | . . . Level 5 . | . . . High Security . | . . . Max Security . | . . . Squads Dispatched 1 | . 1 . Investigation 1 | . 1 . Extermination . | . . . Reinforcement . | . . . Assault . | . . . Garrison . | . . . Intercept . | . . . Searches Triggered . | . . . Construction Impeded . | . . . Haulers Reinforced . | . . . Active Scanning Responses . | . . . Cargo Convoy Interrupts . | . . . Stealth | -11 -10 -10 --------- Run | Yrd Mat Min Distress Signals 1 | . . 1 Communications Jammed . | . . . Distress Signals . | . . . Times Spotted 27 | . 15 12 Peak Tracking Total 4 | . 4 3 Tactical Retreats . | . . . Traps | -11 -10 -10 ------- Run | Yrd Mat Min Traps Triggered . | . . . Indirectly . | . . . Trap Hack Attempts . | . . . Triggered . | . . . Disarmed . | . . . Reprogrammed . | . . . Reused . | . . . Traps Extracted . | . . . Installed . | . . . Triggered . | . . . Machines | -11 -10 -10 ---------- Run | Yrd Mat Min Machines Disabled . | . . . Max in Single Turn . | . . . Machines Repaired . | . . . Machines Dismantled . | . . . Machines Sabotaged . | . . . Overloaded Fab Kills . | . . . Hacking | -11 -10 -10 --------- Run | Yrd Mat Min Machines Accessed 9 | . 9 . Terminals 8 | . 8 . Fabricators . | . . . Repair Stations . | . . . Recycling Units 1 | . 1 . Scanalyzers . | . . . Garrison Access . | . . . Total Hacks 33 | . 33 . Successful 17 | . 17 . Failed 15 | . 15 . Catastrophic 4 | . 4 . Database Lockouts 1 | . 1 . Manual 24 | . 24 . Terminals 30 | . 30 . Fabricators . | . . . Repair Stations . | . . . Recycling Units 3 | . 3 . Scanalyzers . | . . . Garrison Access . | . . . Terminal Hacks 11 | . 11 . Robot Analysis 3 | . 3 . Prototype ID Bank 1 | . 1 . Terminal Index 1 | . 1 . Alert Level 1 | . 1 . Locate Traps 3 | . 3 . Hauler Manifests 1 | . 1 . Registered Components 1 | . 1 . Fabricator Hacks . | . . . Repair Station Hacks . | . . . Recycling Unit Hacks 1 | . 1 . Report Inventory 1 | . 1 . Scanalyzer . | . . . Garrison Access Hacks . | . . . Unauthorized Hacks 5 | . 5 . Terminals 4 | . 4 . Track 1 | . 1 . Botnet 2 | . 2 . Operators 1 | . 1 . Fabricators . | . . . Repair Stations . | . . . Recycling Units 1 | . 1 . Tunnel 1 | . 1 . Scanalyzers . | . . . Garrison Access . | . . . Data Cores Recovered 1 | . 1 . Used . | . . . Hacking Detections 8 | . 8 . Full Trace Events . | . . . Feedback Events . | . . . Feedback Blocked . | . . . Robot Schematics Acquired . | . . . Robots Built . | . . . Authchips . | . . . Time . | . . . Total Robot Build Rating . | . . . Part Schematics Acquired . | . . . Parts Built . | . . . Authchips . | . . . Time . | . . . Total Part Build Rating . | . . . Parts Repaired . | . . . Time . | . . . Parts Recycled . | . . . Recycled Matter . | . . . Retrieved Matter . | . . . Retrieved Components . | . . . Parts Scanalyzed . | . . . Part Schematics Acquired . | . . . Parts Damaged . | . . . Bothacking | -11 -10 -10 ------------ Run | Yrd Mat Min Used RIF Installer . | . . . Robots Hacked . | . . . Non-combat . | . . . Combat . | . . . Robot Hacks Applied . | . . . Relay Couplers Released . | . . . Fabnet Peak Effective % . | . . . Robots Rewired . | . . . Allies Hacked . | . . . Hacks Repelled . | . . . Allies | -11 -10 -10 -------- Run | Yrd Mat Min Total Allies . | . . . Largest Group . | . . . Highest-Rated Group . | . . . Highest-Rated Ally . | . . . Total Orders . | . . . Ally Attacks . | . . . Total Damage . | . . . Kills . | . . . Allies Corrupted . | . . . Allies Melted 1 | . . 1 Intel | -11 -10 -10 ------- Run | Yrd Mat Min Robot Analysis Total 3 | . 3 . Derelict Logs Recovered . | . . . Drone Launches . | . . . Drone Recoveries . | . . . Exploration | -11 -10 -10 ------------- Run | Yrd Mat Min Turns Passed 1443 | 120 1137 186 Spaces Moved 884 | 79 734 71 Core 12 | 12 . . Treads . | . . . Legs 872 | 67 734 71 Wheels . | . . . Hover . | . . . Flight . | . . . Fastest Speed 50 | 50 120 120 Average Speed 119 | 116 120 120 Slowest Speed 150 | 150 120 120 Overloaded Moves . | . . . Propulsion Burnouts . | . . . Robots Hopped . | . . . Cave-ins Triggered . | . . . Exploration Rate (%) 38 | 4 91 20 Regions Visited 2 Branch Regions 1 Pre-discovered Areas 1 | . 1 . Known Exits Taken . | . . . Unknown Exits Taken 2 | 1 1 . Scrap Searched . | . . . Spaces Dug 44 | . . 44 Terrain Destroyed 64 | . . 64 Melee . | . . . Projectile . | . . . AOE 64 | . . 64 Terrain Rammed . | . . . Walls Destroyed . | . . . Machines Disabled . | . . . Actions | -11 -10 -10 --------- Run | Yrd Mat Min Total 1129 | 95 898 136 Wait 106 | . 77 29 Move 882 | 78 733 71 Hop . | . . . Pick Up 20 | 3 16 1 Fast Attach 8 | 7 1 . Attach 1 | . 1 . Detach . | . . . Swap 12 | 1 3 8 Drop 15 | . 12 3 Fire 77 | 4 50 23 Melee . | . . . Ram . | . . . Kick 8 | 2 5 1 Crush . | . . . Escape Stasis . | . . . Rewire . | . . . Trap . | . . . Miscellaneous . | . . . Route ------- -11/Scrapyard -10/Materials (discovered 5 exits: [*Mat x3] / [*Min x2]) -10/Mines History --------- Turn | Location | Event 2 | -11/Scrapyard | Met Revision 17 12 | -11/Scrapyard | Discovered new exit (range 16) 121 | -11/Scrapyard | Entered Materials 312 | -10/Materials | Build established: Mutant 398 | -10/Materials | Central database locked down 414 | -10/Materials | Discovered new exit (range 12) 757 | -10/Materials | Discovered new exit (range 11) 834 | -10/Materials | Discovered new exit (range 15) 934 | -10/Materials | Build established: Scavenger-Mutant 958 | -10/Materials | Discovered new exit (range 16) 1035 | -10/Materials | Discovered new exit (range 15) 1258 | -10/Materials | Entered Mines 1259 | -10/Mines | Assembled infested the area 1264 | -10/Mines | Assisted by a Guerilla fighting off Assembled 1292 | -10/Mines | Core integrity fell below 50% 1391 | -10/Mines | Found a hidden stash of uninstalled traps 1432 | -10/Mines | Core integrity fell below 20% 1444 | -10/Mines | Destroyed by as-73298 with Assembled Blade Last Messages --------------- 01413_ The unstable cave ceiling collapses. 01414_ Acquired 1 matter. 01414_ U-05 Engineer builds a Wall. 01414_ U-05 Engineer lays Concrete. 01419_ U-05 Engineer builds a Wall. 01422_ The unstable cave ceiling collapses. 01424_ U-05 Engineer builds a Wall. 01425_ as-10080 destroyed. 01427_ U-05 Engineer lays Concrete. 01428_ U-05 Engineer builds a Wall. 01433_ K-01 Serf collects debris. 01433_ U-05 Engineer builds a Wall. 01434_ as-20582 destroyed. 01436_ K-01 Serf collects debris. 01437_ U-05 Engineer lays Concrete. 01438_ U-05 Engineer builds a Wall. 01441_ Ion Engine destroyed. 01442_ The unstable cave ceiling collapses. 01442_ Destroyed Asb. Hover Unit. 01444_ The unstable cave ceiling collapses. Map ----- +----------------------------------------------------+ | ?????????????????????????????????????????????????? | | ?????????????????????????????????????????????????? | | ?????????????????????????????????????????????????? | | ?????????????????????????????????????????????????? | | ?????????????????????????????????????????????????? | | ?????????????????????????????????????????????????? | | ?????????????????????????????????????????????????? | | ?????????????????????????????????????????????????? | | ?????????????????????????????????????????????????? | | ????????????####?????????????????????????????????? | | ????????????# ###??????????????????????????????? | | ????????????# ###????????????????????????????? | | ????????????# = #????????????????????????????? | | ????????????# %= #????????????????????????????? | | ????????????# *%= #??????###???????????????????? | | ????????????# % #?????## ##??????????????????? | | ????????????## #???### #??????????????????? | | ?????????????# #?### #??????????????????? | | ?????????????#### ###?# ##?????????????????? | | ??#########???### #??## #?????????????????? | | ?? #???# #??# ####### ??????????? | | ?# """ #???# ###??## # ?????????? | | ?# """ ##### #?????# # % ?????????? | | ?# """ !%*[ #???#### #????????? | | ?# =##### #???###### * #????????? | | ?# """ #???#%#???#%%=[@% ## #????????? | | ?# """ #?### #???#%####a #????????? | | ?# """ #?# ##??#%##! u #??????????? | | ?? #?## #### #### ###!# #??????????? | | ?? """ #??# ## #??# #??#??##??????????? | | ?# """ #??# #?? % #?????????????????? | | ?# """ #??## #?? #?????????????????? | | ????? #???## #?? % #?????????????????? | | ????? ?????## ##??# ?????????????????? | | ????? ??????######???# ????????????????? | | ?????#####???????????????? %###???????????????? | | ?????????????????????????? %= #?????????????????? | | ??????????????????????????# #?????????????????? | | ??????????????????????????? ?????????????????? | | ??????????????????????????? ?????????????????? | | ??????????????????????????? ??????????????????? | | ??????????????????????????? ????????????????????? | | ?????????????????????????????????????????????????? | | ?????????????????????????????????????????????????? | | ?????????????????????????????????????????????????? | | ?????????????????????????????????????????????????? | | ?????????????????????????????????????????????????? | | ?????????????????????????????????????????????????? | | ?????????????????????????????????????????????????? | | ?????????????????????????????????????????????????? | +----------------------------------------------------+ Best States ------------- Heat Dissipation 39 Energy Generation 10 Energy Capacity 250 Matter Stores 300 Matter Capacity 300 Sight Range 16 Terrain Scan Density 10 Evasion (%) 55 Authchip Count 3 Item Schematics ----------------- None Robot Schematics ------------------ None Fabricated ------------ Nothing Alien Tech Used ----------------- None Achievements -------------- None Challenges ------------ None Game ------ Seed CarbideCommInsulator Manual? 0 Play Time 00:24:05 Cumulative 307.1 hours Start 2024.07.04 @ 13:39:42 End 2024.07.04 @ 14:02:28 Sessions 1 Manual Loads 0 Difficulty Rogue Special Mode None Game No. 182 Rogue 182 Adventurer 0 Explorer 0 Win Type - Total 2 Types 2/0/0/0/0/0/0/0/0 Lore% 54 Gallery% 64 Achievement% 40 Wizard Run 0 Options --------- Layout 0 ASCII 0 Keyboard 1 Movement Numpad Keybinds 0 Fullscreen 2 Font 24/Smallcaps Map View 76x50 Zoom Use 0% Tactical HUD 1 Map Filters NONE Filters NONE Steam 1 RUN: 1be045fe-817c-465d-a93a-5657d078e18b